[Event "Titled Tuesday Blitz June 6 Early 2023"]
[White "Cramling Bellon, Anna"]
[Black "Shapiro, Daniel"]
[WhiteFideId "32009232"]
[BlackFideId "2001780"]
[WhiteElo "1976"]
[BlackElo "2358"]
[Result "1/2-1/2"]
[Round "9"]
[TimeControl "180+2"]
[Date "2023.06.06"]
[WhiteClock "0:00:08"]
[BlackClock "0:00:14"]
[Board "133"]

1. d4 {[%clk 0:03:00]}  Nf6 {[%clk 0:02:57]} 2. c4 {[%clk 0:03:00]}  e6 {[%clk 0:02:53]} 3. Nc3 {[%clk 0:02:59]}  Bb4 {[%clk 0:02:52]} 4. Qc2 {[%clk 0:02:58]}  c5 {[%clk 0:02:50]} 5. dxc5 {[%clk 0:02:48]}  Bxc5 {[%clk 0:02:50]} 6. Nf3 {[%clk 0:02:48]}  Qb6 {[%clk 0:02:50]} 7. e3 {[%clk 0:02:47]}  Qc7 {[%clk 0:02:49]} 8. Bd3 {[%clk 0:02:41]}  a6 {[%clk 0:02:44]} 9. O-O {[%clk 0:02:40]}  Be7 {[%clk 0:02:44]} 10. e4 {[%clk 0:02:39]}  d6 {[%clk 0:02:44]} 11. Bf4 {[%clk 0:02:35]}  Nbd7 {[%clk 0:02:40]} 12. Rfe1 {[%clk 0:02:26]}  Ne5 {[%clk 0:02:34]} 13. Nxe5 {[%clk 0:02:22]}  dxe5 {[%clk 0:02:35]} 14. Be3 {[%clk 0:02:22]}  b6 {[%clk 0:02:29]} 15. Na4 {[%clk 0:02:18]}  Rb8 {[%clk 0:02:25]} 16. c5 {[%clk 0:02:10]}  b5 {[%clk 0:01:41]} 17. Nb6 {[%clk 0:02:09]}  Bb7 {[%clk 0:01:41]} 18. a4 {[%clk 0:02:07]}  Ng4 {[%clk 0:01:31]} 19. axb5 {[%clk 0:02:04]}  Nxe3 {[%clk 0:01:31]} 20. fxe3 {[%clk 0:01:50]}  Bxc5 {[%clk 0:01:16]} 21. bxa6 {[%clk 0:01:36]}  Qxb6 {[%clk 0:00:27]} 22. axb7 {[%clk 0:01:27]}  Bxe3+ {[%clk 0:00:27]} 23. Kh1 {[%clk 0:01:24]}  O-O {[%clk 0:00:26]} 24. Ra6 {[%clk 0:00:53]}  Qd4 {[%clk 0:00:18]} 25. Ra4 {[%clk 0:00:35]}  Qb6 {[%clk 0:00:15]} 26. Ba6 {[%clk 0:00:28]}  Bd4 {[%clk 0:00:13]} 27. h3 {[%clk 0:00:25]}  h6 {[%clk 0:00:12]} 28. Qe2 {[%clk 0:00:21]}  Qxb2 {[%clk 0:00:10]} 29. Qxb2 {[%clk 0:00:20]}  Bxb2 {[%clk 0:00:10]} 30. Rc4 {[%clk 0:00:19]}  Bd4 {[%clk 0:00:07]} 31. Rc8 {[%clk 0:00:14]}  Ba7 {[%clk 0:00:06]} 32. Rec1 {[%clk 0:00:12]}  g6 {[%clk 0:00:04]} 33. g4 {[%clk 0:00:10]}  Kg7 {[%clk 0:00:04]} 34. Rxf8 {[%clk 0:00:07]}  Kxf8 {[%clk 0:00:03]} 35. Rc8+ {[%clk 0:00:07]}  Ke7 {[%clk 0:00:04]} 36. Kg2 {[%clk 0:00:07]}  Kd7 {[%clk 0:00:03]} 37. Kf3 {[%clk 0:00:07]}  Ke7 {[%clk 0:00:02]} 38. Ke2 {[%clk 0:00:07]}  f5 {[%clk 0:00:02]} 39. gxf5 {[%clk 0:00:07]}  exf5 {[%clk 0:00:02]} 40. exf5 {[%clk 0:00:06]}  gxf5 {[%clk 0:00:03]} 41. Kd3 {[%clk 0:00:04]}  Kf6 {[%clk 0:00:03]} 42. Rc6+ {[%clk 0:00:03]}  Kg5 {[%clk 0:00:03]} 43. h4+ {[%clk 0:00:02]}  Kf4 {[%clk 0:00:03]} 44. Rxh6 {[%clk 0:00:02]}  e4+ {[%clk 0:00:03]} 45. Ke2 {[%clk 0:00:02]}  Kg3 {[%clk 0:00:03]} 46. Rh7 {[%clk 0:00:02]}  f4 {[%clk 0:00:03]} 47. Rg7+ {[%clk 0:00:01]}  Kxh4 {[%clk 0:00:02]} 48. Rf7 {[%clk 0:00:01]}  f3+ {[%clk 0:00:02]} 49. Kf1 {[%clk 0:00:01]}  Kg3 {[%clk 0:00:02]} 50. Rg7+ {[%clk 0:00:01]}  Kf4 {[%clk 0:00:02]} 51. Rf7+ {[%clk 0:00:02]}  Ke3 {[%clk 0:00:02]} 52. Rc7 {[%clk 0:00:01]}  Kd2 {[%clk 0:00:02]} 53. Rd7+ {[%clk 0:00:01]}  Ke3 {[%clk 0:00:02]} 54. Rc7 {[%clk 0:00:01]}  Kf4 {[%clk 0:00:02]} 55. Rc8 {[%clk 0:00:02]}  Ke5 {[%clk 0:00:02]} 56. Re8+ {[%clk 0:00:02]}  Kd4 {[%clk 0:00:02]} 57. Rxb8 {[%clk 0:00:01]}  Bxb8 {[%clk 0:00:02]} 58. Ke1 {[%clk 0:00:02]}  Bf4 {[%clk 0:00:02]} 59. Kf1 {[%clk 0:00:02]}  Bb8 {[%clk 0:00:03]} 60. Ke1 {[%clk 0:00:02]}  Ba7 {[%clk 0:00:04]} 61. Kf1 {[%clk 0:00:02]}  e3 {[%clk 0:00:04]} 62. Ke1 {[%clk 0:00:02]}  Ke4 {[%clk 0:00:04]} 63. Kf1 {[%clk 0:00:02]}  Kf4 {[%clk 0:00:05]} 64. Ke1 {[%clk 0:00:03]}  Kg3 {[%clk 0:00:05]} 65. Bf1 {[%clk 0:00:02]}  Kf4 {[%clk 0:00:05]} 66. Bc4 {[%clk 0:00:02]}  Ke4 {[%clk 0:00:05]} 67. Ba6 {[%clk 0:00:03]}  Kd4 {[%clk 0:00:06]} 68. Kf1 {[%clk 0:00:03]}  Kc3 {[%clk 0:00:07]} 69. Ke1 {[%clk 0:00:03]}  Kd4 {[%clk 0:00:07]} 70. Kf1 {[%clk 0:00:04]}  Kc5 {[%clk 0:00:07]} 71. Ke1 {[%clk 0:00:04]}  Kb6 {[%clk 0:00:08]} 72. Bd3 {[%clk 0:00:03]}  Kxb7 {[%clk 0:00:07]} 73. Be4+ {[%clk 0:00:03]}  Kb6 {[%clk 0:00:08]} 74. Bxf3 {[%clk 0:00:04]}  Kc5 {[%clk 0:00:09]} 75. Ke2 {[%clk 0:00:04]}  Kd4 {[%clk 0:00:10]} 76. Bg4 {[%clk 0:00:05]}  Ke5 {[%clk 0:00:11]} 77. Bf3 {[%clk 0:00:05]}  Kf4 {[%clk 0:00:12]} 78. Bg2 {[%clk 0:00:06]}  Ke5 {[%clk 0:00:13]} 79. Bf3 {[%clk 0:00:06]}  Kf4 {[%clk 0:00:14]} 80. Bg2 {[%clk 0:00:07]}  Ke5 {[%clk 0:00:14]} 81. Bf3 {[%clk 0:00:08]} 1/2-1/2


[Site "https://www.chess.com"]

[Event "Titled Tuesday Blitz June 6 Early 2023"]
[White "Ciuffoletti, Paolo"]
[Black "Rodriguez Santiago, Jaime"]
[WhiteFideId "807630"]
[BlackFideId "3100898"]
[WhiteElo "2143"]
[BlackElo "2025"]
[Result "0-1"]
[Round "9"]
[TimeControl "180+2"]
[Date "2023.06.06"]
[WhiteClock "0:00:01"]
[BlackClock "0:00:08"]
[Board "134"]

1. e4 {[%clk 0:03:00]}  c6 {[%clk 0:02:57]} 2. d4 {[%clk 0:03:00]}  d5 {[%clk 0:02:57]} 3. exd5 {[%clk 0:03:00]}  cxd5 {[%clk 0:02:56]} 4. c4 {[%clk 0:03:00]}  e6 {[%clk 0:02:55]} 5. Nc3 {[%clk 0:03:00]}  Nf6 {[%clk 0:02:55]} 6. Nf3 {[%clk 0:03:00]}  Be7 {[%clk 0:02:53]} 7. cxd5 {[%clk 0:03:00]}  Nxd5 {[%clk 0:02:52]} 8. Bd3 {[%clk 0:02:58]}  h6 {[%clk 0:02:48]} 9. O-O {[%clk 0:02:57]}  Nc6 {[%clk 0:02:48]} 10. Re1 {[%clk 0:02:54]}  O-O {[%clk 0:02:47]} 11. a3 {[%clk 0:02:53]}  Bf6 {[%clk 0:02:41]} 12. Bc2 {[%clk 0:02:49]}  Nxc3 {[%clk 0:02:37]} 13. bxc3 {[%clk 0:02:47]}  Ne7 {[%clk 0:02:11]} 14. Ne5 {[%clk 0:02:33]}  Bxe5 {[%clk 0:02:04]} 15. Rxe5 {[%clk 0:02:30]}  b6 {[%clk 0:02:03]} 16. Bxh6 {[%clk 0:02:12]}  Ng6 {[%clk 0:01:42]} 17. Bxg6 {[%clk 0:01:48]}  fxg6 {[%clk 0:01:34]} 18. Bg5 {[%clk 0:01:42]}  Qc7 {[%clk 0:01:33]} 19. Qd3 {[%clk 0:01:36]}  Bb7 {[%clk 0:01:25]} 20. Qxg6 {[%clk 0:01:25]}  Qxc3 {[%clk 0:01:16]} 21. Qxe6+ {[%clk 0:01:06]}  Rf7 {[%clk 0:01:15]} 22. Rae1 {[%clk 0:01:00]}  Rf8 {[%clk 0:01:04]} 23. d5 {[%clk 0:00:48]}  Bc8 {[%clk 0:00:59]} 24. Qc6 {[%clk 0:00:34]}  Qb2 {[%clk 0:00:50]} 25. R5e2 {[%clk 0:00:29]}  Qd4 {[%clk 0:00:48]} 26. Be3 {[%clk 0:00:26]}  Qd3 {[%clk 0:00:42]} 27. Rd2 {[%clk 0:00:23]}  Qxa3 {[%clk 0:00:41]} 28. d6 {[%clk 0:00:18]}  Bb7 {[%clk 0:00:40]} 29. Qc4 {[%clk 0:00:17]}  Qa5 {[%clk 0:00:28]} 30. d7 {[%clk 0:00:14]}  Rd8 {[%clk 0:00:27]} 31. Red1 {[%clk 0:00:05]}  Qh5 {[%clk 0:00:24]} 32. Qc7 {[%clk 0:00:04]}  Rff8 {[%clk 0:00:09]} 33. h3 {[%clk 0:00:02]}  Ba8 {[%clk 0:00:08]} 34. Qd6 {[%clk 0:00:01]}  Qf7 {[%clk 0:00:08]} 35. Qd4 {[%clk 0:00:01]}  Qg6 {[%clk 0:00:08]} 36. Bf4 {[%clk 0:00:01]}  Qxg2# {[%clk 0:00:08]} 0-1


[Site "https://www.chess.com"]

[Event "Titled Tuesday Blitz June 6 Early 2023"]
[White "Francisco_Ferrari"]
[Black "Kuzmin, Ilya"]
[BlackFideId "4153863"]
[WhiteElo "2143"]
[BlackElo "2093"]
[Result "1-0"]
[Round "9"]
[TimeControl "180+2"]
[Date "2023.06.06"]
[WhiteClock "0:00:05"]
[BlackClock "0:00:02"]
[Board "136"]

1. Nf3 {[%clk 0:02:55]}  Nf6 {[%clk 0:02:59]} 2. g3 {[%clk 0:02:55]}  c5 {[%clk 0:02:59]} 3. Bg2 {[%clk 0:02:55]}  Nc6 {[%clk 0:03:00]} 4. O-O {[%clk 0:02:55]}  e5 {[%clk 0:03:00]} 5. c4 {[%clk 0:02:55]}  d6 {[%clk 0:02:56]} 6. Nc3 {[%clk 0:02:55]}  g6 {[%clk 0:02:55]} 7. d3 {[%clk 0:02:55]}  Bg7 {[%clk 0:02:55]} 8. Bg5 {[%clk 0:02:53]}  O-O {[%clk 0:02:54]} 9. Qd2 {[%clk 0:02:47]}  Ne7 {[%clk 0:02:49]} 10. a3 {[%clk 0:02:24]}  Be6 {[%clk 0:02:40]} 11. b4 {[%clk 0:02:21]}  b6 {[%clk 0:02:33]} 12. bxc5 {[%clk 0:02:09]}  bxc5 {[%clk 0:02:30]} 13. Rab1 {[%clk 0:02:09]}  Rb8 {[%clk 0:02:11]} 14. Rxb8 {[%clk 0:02:08]}  Qxb8 {[%clk 0:02:10]} 15. Rb1 {[%clk 0:02:08]}  Qc8 {[%clk 0:02:04]} 16. Bxf6 {[%clk 0:01:54]}  Bxf6 {[%clk 0:02:03]} 17. Ne4 {[%clk 0:01:55]}  Bg7 {[%clk 0:01:54]} 18. Nxd6 {[%clk 0:01:53]}  Qa6 {[%clk 0:01:50]} 19. Nb5 {[%clk 0:01:44]}  h6 {[%clk 0:01:47]} 20. Qe3 {[%clk 0:01:32]}  Rc8 {[%clk 0:01:36]} 21. Nxe5 {[%clk 0:01:17]}  Nf5 {[%clk 0:01:33]} 22. Qe4 {[%clk 0:01:17]}  Qa4 {[%clk 0:01:16]} 23. Nc3 {[%clk 0:00:34]}  Qc2 {[%clk 0:01:08]} 24. Nxg6 {[%clk 0:00:16]}  Qxc3 {[%clk 0:00:56]} 25. g4 {[%clk 0:00:10]}  Nd6 {[%clk 0:00:47]} 26. Qf4 {[%clk 0:00:07]}  Rd8 {[%clk 0:00:39]} 27. Ne7+ {[%clk 0:00:07]}  Kh8 {[%clk 0:00:35]} 28. Nc6 {[%clk 0:00:08]}  Qc2 {[%clk 0:00:14]} 29. Rc1 {[%clk 0:00:05]}  Qxe2 {[%clk 0:00:09]} 30. Nxd8 {[%clk 0:00:05]}  Ne8 {[%clk 0:00:08]} 31. Nxe6 {[%clk 0:00:05]}  fxe6 {[%clk 0:00:08]} 32. Qe4 {[%clk 0:00:05]}  Qd2 {[%clk 0:00:06]} 33. Re1 {[%clk 0:00:04]}  Bd4 {[%clk 0:00:05]} 34. Qe2 {[%clk 0:00:03]}  Qf4 {[%clk 0:00:04]} 35. Be4 {[%clk 0:00:04]}  Nf6 {[%clk 0:00:02]} 36. Qf3 {[%clk 0:00:05]} 1-0


[Site "https://www.chess.com"]

[Event "Titled Tuesday Blitz June 6 Early 2023"]
[White "Abrosimov, Vladimir"]
[Black "Zallio, Luciano de Souza"]
[WhiteFideId "4166892"]
[BlackFideId "2109700"]
[WhiteElo "2336"]
[BlackElo "2057"]
[Result "0-1"]
[Round "9"]
[TimeControl "180+2"]
[Date "2023.06.06"]
[WhiteClock "0:00:05"]
[BlackClock "0:00:20"]
[Board "137"]

1. c4 {[%clk 0:03:00]}  e5 {[%clk 0:02:59]} 2. Nc3 {[%clk 0:03:00]}  d6 {[%clk 0:02:59]} 3. d3 {[%clk 0:03:00]}  f5 {[%clk 0:03:00]} 4. g3 {[%clk 0:03:00]}  Nf6 {[%clk 0:03:00]} 5. Bg2 {[%clk 0:03:01]}  Be7 {[%clk 0:03:00]} 6. e3 {[%clk 0:03:01]}  O-O {[%clk 0:03:00]} 7. Nge2 {[%clk 0:03:02]}  c6 {[%clk 0:02:54]} 8. O-O {[%clk 0:03:01]}  Qe8 {[%clk 0:02:52]} 9. Rb1 {[%clk 0:02:56]}  a5 {[%clk 0:02:51]} 10. a3 {[%clk 0:02:56]}  Qh5 {[%clk 0:02:47]} 11. b4 {[%clk 0:02:53]}  axb4 {[%clk 0:02:37]} 12. axb4 {[%clk 0:02:52]}  g5 {[%clk 0:02:31]} 13. f4 {[%clk 0:02:39]}  gxf4 {[%clk 0:02:16]} 14. exf4 {[%clk 0:02:26]}  Kh8 {[%clk 0:02:07]} 15. b5 {[%clk 0:02:15]}  Ng4 {[%clk 0:02:05]} 16. h3 {[%clk 0:02:14]}  Nf6 {[%clk 0:02:05]} 17. bxc6 {[%clk 0:02:11]}  Nxc6 {[%clk 0:02:01]} 18. Nd5 {[%clk 0:02:00]}  Nxd5 {[%clk 0:01:55]} 19. cxd5 {[%clk 0:01:58]}  Nd8 {[%clk 0:01:50]} 20. fxe5 {[%clk 0:01:46]}  dxe5 {[%clk 0:01:50]} 21. Bb2 {[%clk 0:01:44]}  Nf7 {[%clk 0:01:46]} 22. Nf4 {[%clk 0:01:35]}  Qg5 {[%clk 0:01:40]} 23. Ne6 {[%clk 0:01:33]}  Bxe6 {[%clk 0:01:30]} 24. dxe6 {[%clk 0:01:32]}  Nd6 {[%clk 0:01:04]} 25. Bxe5+ {[%clk 0:01:31]}  Kg8 {[%clk 0:01:04]} 26. Bf4 {[%clk 0:01:28]}  Qf6 {[%clk 0:01:00]} 27. Re1 {[%clk 0:01:20]}  Ra2 {[%clk 0:00:55]} 28. Re2 {[%clk 0:01:17]}  Rfa8 {[%clk 0:00:50]} 29. Bd5 {[%clk 0:01:10]}  Qd4+ {[%clk 0:00:49]} 30. Kh2 {[%clk 0:00:49]}  Qxd5 {[%clk 0:00:49]} 31. Rbb2 {[%clk 0:00:48]}  Rxb2 {[%clk 0:00:47]} 32. Rxb2 {[%clk 0:00:47]}  Ra2 {[%clk 0:00:46]} 33. Qe2 {[%clk 0:00:46]}  Rxb2 {[%clk 0:00:45]} 34. Qxb2 {[%clk 0:00:47]}  Qxd3 {[%clk 0:00:44]} 35. Bh6 {[%clk 0:00:42]}  Bf8 {[%clk 0:00:38]} 36. Bxf8 {[%clk 0:00:36]}  Kxf8 {[%clk 0:00:37]} 37. Qf6+ {[%clk 0:00:23]}  Ke8 {[%clk 0:00:37]} 38. Qh8+ {[%clk 0:00:18]}  Ke7 {[%clk 0:00:37]} 39. Qxh7+ {[%clk 0:00:19]}  Kxe6 {[%clk 0:00:37]} 40. Qg6+ {[%clk 0:00:19]}  Ke5 {[%clk 0:00:36]} 41. Qg7+ {[%clk 0:00:18]}  Kd5 {[%clk 0:00:34]} 42. h4 {[%clk 0:00:17]}  Qe2+ {[%clk 0:00:28]} 43. Kh3 {[%clk 0:00:17]}  Qg4+ {[%clk 0:00:28]} 44. Qxg4 {[%clk 0:00:15]}  fxg4+ {[%clk 0:00:29]} 45. Kxg4 {[%clk 0:00:16]}  b5 {[%clk 0:00:27]} 46. h5 {[%clk 0:00:16]}  Nf7 {[%clk 0:00:26]} 47. Kf5 {[%clk 0:00:15]}  b4 {[%clk 0:00:27]} 48. Kf6 {[%clk 0:00:15]}  Nh6 {[%clk 0:00:24]} 49. Kg6 {[%clk 0:00:15]}  Ng4 {[%clk 0:00:22]} 50. h6 {[%clk 0:00:13]}  Nxh6 {[%clk 0:00:21]} 51. Kxh6 {[%clk 0:00:13]}  b3 {[%clk 0:00:22]} 52. g4 {[%clk 0:00:13]}  b2 {[%clk 0:00:23]} 53. g5 {[%clk 0:00:13]}  b1=Q {[%clk 0:00:24]} 54. g6 {[%clk 0:00:14]}  Qb8 {[%clk 0:00:23]} 55. Kh7 {[%clk 0:00:13]}  Qh2+ {[%clk 0:00:23]} 56. Kg8 {[%clk 0:00:12]}  Qh6 {[%clk 0:00:19]} 57. g7 {[%clk 0:00:12]}  Ke6 {[%clk 0:00:18]} 58. Kf8 {[%clk 0:00:10]}  Qf6+ {[%clk 0:00:18]} 59. Kg8 {[%clk 0:00:08]}  Qd8+ {[%clk 0:00:18]} 60. Kh7 {[%clk 0:00:08]}  Qh4+ {[%clk 0:00:18]} 61. Kg8 {[%clk 0:00:08]}  Kf6 {[%clk 0:00:19]} 62. Kf8 {[%clk 0:00:07]}  Qb4+ {[%clk 0:00:19]} 63. Kg8 {[%clk 0:00:05]}  Qb8+ {[%clk 0:00:20]} 64. Kh7 {[%clk 0:00:05]}  Qc7 {[%clk 0:00:20]} 0-1


[Site "https://www.chess.com"]

[Event "Titled Tuesday Blitz June 6 Early 2023"]
[White "Winkels, Marcel"]
[Black "Clawitter, Craig"]
[WhiteFideId "1003887"]
[BlackFideId "2023105"]
[WhiteElo "1900"]
[BlackElo "2229"]
[Result "0-1"]
[Round "9"]
[TimeControl "180+2"]
[Date "2023.06.06"]
[WhiteClock "0:00:01"]
[BlackClock "0:00:12"]
[Board "138"]

1. d4 {[%clk 0:03:00]}  e6 {[%clk 0:02:59]} 2. e4 {[%clk 0:02:58]}  d5 {[%clk 0:02:59]} 3. Nc3 {[%clk 0:02:58]}  Bb4 {[%clk 0:02:59]} 4. e5 {[%clk 0:02:57]}  c5 {[%clk 0:02:59]} 5. a3 {[%clk 0:02:57]}  Bxc3+ {[%clk 0:03:00]} 6. bxc3 {[%clk 0:02:58]}  Ne7 {[%clk 0:03:01]} 7. Qg4 {[%clk 0:02:57]}  Qc7 {[%clk 0:03:01]} 8. Bd3 {[%clk 0:02:56]}  c4 {[%clk 0:02:58]} 9. Be2 {[%clk 0:02:53]}  Qa5 {[%clk 0:02:58]} 10. Bd2 {[%clk 0:02:49]}  Nf5 {[%clk 0:02:58]} 11. Nh3 {[%clk 0:02:46]}  Nc6 {[%clk 0:02:56]} 12. Qf4 {[%clk 0:02:41]}  Qa4 {[%clk 0:02:32]} 13. Bd1 {[%clk 0:02:34]}  Bd7 {[%clk 0:02:31]} 14. O-O {[%clk 0:02:33]}  O-O {[%clk 0:02:26]} 15. g4 {[%clk 0:02:27]}  Nh4 {[%clk 0:02:16]} 16. Qg3 {[%clk 0:02:25]}  Ng6 {[%clk 0:02:12]} 17. f4 {[%clk 0:02:23]}  f5 {[%clk 0:02:07]} 18. gxf5 {[%clk 0:02:07]}  Rxf5 {[%clk 0:02:08]} 19. Bg4 {[%clk 0:02:06]}  Nce7 {[%clk 0:01:54]} 20. Ng5 {[%clk 0:01:58]}  Qxc2 {[%clk 0:01:41]} 21. Rf2 {[%clk 0:01:08]}  Raf8 {[%clk 0:01:29]} 22. Bxf5 {[%clk 0:01:05]}  Nxf5 {[%clk 0:01:27]} 23. Qh3 {[%clk 0:01:01]}  h6 {[%clk 0:00:59]} 24. Nf3 {[%clk 0:01:00]}  Qd3 {[%clk 0:00:44]} 25. Kg2 {[%clk 0:00:43]}  Ne3+ {[%clk 0:00:17]} 26. Bxe3 {[%clk 0:00:36]}  Qxe3 {[%clk 0:00:18]} 27. Re1 {[%clk 0:00:23]}  Nxf4+ {[%clk 0:00:18]} 28. Kg3 {[%clk 0:00:16]}  Qxf2+ {[%clk 0:00:17]} 29. Kxf2 {[%clk 0:00:15]}  Nxh3+ {[%clk 0:00:18]} 30. Kg3 {[%clk 0:00:15]}  Ng5 {[%clk 0:00:18]} 31. Nd2 {[%clk 0:00:13]}  Rf5 {[%clk 0:00:14]} 32. Rb1 {[%clk 0:00:12]}  Bc6 {[%clk 0:00:13]} 33. Nf1 {[%clk 0:00:10]}  Ne4+ {[%clk 0:00:13]} 34. Kg2 {[%clk 0:00:09]}  Nxc3 {[%clk 0:00:13]} 35. Re1 {[%clk 0:00:06]}  Ne4 {[%clk 0:00:13]} 36. Ne3 {[%clk 0:00:06]}  c3 {[%clk 0:00:13]} 37. Nxf5 {[%clk 0:00:05]}  exf5 {[%clk 0:00:14]} 38. Rc1 {[%clk 0:00:04]}  Ba4 {[%clk 0:00:13]} 39. Kf3 {[%clk 0:00:02]}  Nd2+ {[%clk 0:00:12]} 40. Ke2 {[%clk 0:00:02]}  Ne4 {[%clk 0:00:12]} 41. Kd3 {[%clk 0:00:01]}  Kf7 {[%clk 0:00:12]} 0-1


[Site "https://www.chess.com"]

[Event "Titled Tuesday Blitz June 6 Early 2023"]
[White "Toczek, Grzegorz"]
[Black "Blackwhite017"]
[WhiteFideId "1106457"]
[WhiteElo "2093"]
[BlackElo "2091"]
[Result "1-0"]
[Round "9"]
[TimeControl "180+2"]
[Date "2023.06.06"]
[WhiteClock "0:00:46"]
[BlackClock "0:00:02"]
[Board "140"]

1. e4 {[%clk 0:03:00]}  c5 {[%clk 0:02:59]} 2. Nc3 {[%clk 0:02:58]}  Nc6 {[%clk 0:02:58]} 3. f4 {[%clk 0:02:57]}  g6 {[%clk 0:02:58]} 4. Nf3 {[%clk 0:02:57]}  Bg7 {[%clk 0:02:59]} 5. Bc4 {[%clk 0:02:56]}  e6 {[%clk 0:02:59]} 6. O-O {[%clk 0:02:54]}  Nge7 {[%clk 0:03:00]} 7. d3 {[%clk 0:02:52]}  d5 {[%clk 0:02:55]} 8. Bb3 {[%clk 0:02:51]}  O-O {[%clk 0:02:42]} 9. Qe1 {[%clk 0:02:51]}  Nd4 {[%clk 0:02:32]} 10. Ne5 {[%clk 0:02:44]}  Nxb3 {[%clk 0:02:27]} 11. axb3 {[%clk 0:02:42]}  Nc6 {[%clk 0:02:18]} 12. Nxc6 {[%clk 0:02:21]}  bxc6 {[%clk 0:02:19]} 13. Na4 {[%clk 0:02:22]}  Qe7 {[%clk 0:01:29]} 14. Be3 {[%clk 0:02:22]}  d4 {[%clk 0:01:29]} 15. Bd2 {[%clk 0:02:22]}  Rd8 {[%clk 0:01:20]} 16. Ba5 {[%clk 0:02:14]}  Rd7 {[%clk 0:01:14]} 17. e5 {[%clk 0:02:14]}  Bb7 {[%clk 0:01:05]} 18. Qf2 {[%clk 0:02:08]}  Rf8 {[%clk 0:00:44]} 19. Rae1 {[%clk 0:02:08]}  f5 {[%clk 0:00:26]} 20. Qd2 {[%clk 0:02:07]}  h6 {[%clk 0:00:18]} 21. h4 {[%clk 0:01:53]}  Qxh4 {[%clk 0:00:17]} 22. Nxc5 {[%clk 0:01:53]}  Re7 {[%clk 0:00:16]} 23. Qf2 {[%clk 0:01:47]}  g5 {[%clk 0:00:14]} 24. Qxh4 {[%clk 0:01:47]}  gxh4 {[%clk 0:00:15]} 25. Re2 {[%clk 0:01:38]}  Kh8 {[%clk 0:00:15]} 26. Be1 {[%clk 0:01:38]}  Rg8 {[%clk 0:00:14]} 27. Bxh4 {[%clk 0:01:37]}  Rc7 {[%clk 0:00:13]} 28. Nxe6 {[%clk 0:01:36]}  Rf7 {[%clk 0:00:12]} 29. Nc5 {[%clk 0:01:35]}  Bf8 {[%clk 0:00:11]} 30. Bf6+ {[%clk 0:01:34]}  Kh7 {[%clk 0:00:11]} 31. Nxb7 {[%clk 0:01:19]}  Rxb7 {[%clk 0:00:11]} 32. e6 {[%clk 0:01:20]}  Be7 {[%clk 0:00:11]} 33. Bxd4 {[%clk 0:01:20]}  Rg4 {[%clk 0:00:10]} 34. Be5 {[%clk 0:01:15]}  Bc5+ {[%clk 0:00:07]} 35. d4 {[%clk 0:01:14]}  Be7 {[%clk 0:00:07]} 36. Ra1 {[%clk 0:01:11]}  a5 {[%clk 0:00:07]} 37. Rxa5 {[%clk 0:01:10]}  h5 {[%clk 0:00:06]} 38. Ra6 {[%clk 0:01:09]}  h4 {[%clk 0:00:06]} 39. Kh2 {[%clk 0:01:07]}  h3 {[%clk 0:00:07]} 40. gxh3 {[%clk 0:01:06]}  Rg6 {[%clk 0:00:05]} 41. Rxc6 {[%clk 0:01:03]}  Ra7 {[%clk 0:00:04]} 42. Rc7 {[%clk 0:01:03]}  Rxc7 {[%clk 0:00:04]} 43. Bxc7 {[%clk 0:01:03]}  Kh6 {[%clk 0:00:05]} 44. d5 {[%clk 0:01:01]}  Kh5 {[%clk 0:00:05]} 45. d6 {[%clk 0:00:59]}  Bf6 {[%clk 0:00:03]} 46. e7 {[%clk 0:00:58]}  Kh4 {[%clk 0:00:03]} 47. e8=Q {[%clk 0:00:56]}  Rg3 {[%clk 0:00:02]} 48. Re3 {[%clk 0:00:46]} 1-0


[Site "https://www.chess.com"]

[Event "Titled Tuesday Blitz June 6 Early 2023"]
[White "White, John S."]
[Black "Floresvillar Gonzalez, Luis Migu"]
[WhiteFideId "2502348"]
[BlackFideId "5100542"]
[WhiteElo "1997"]
[BlackElo "2040"]
[Result "1/2-1/2"]
[Round "9"]
[TimeControl "180+2"]
[Date "2023.06.06"]
[WhiteClock "0:00:21"]
[BlackClock "0:00:17"]
[Board "141"]

1. e4 {[%clk 0:03:00]}  c6 {[%clk 0:02:59]} 2. d4 {[%clk 0:03:00]}  d5 {[%clk 0:02:59]} 3. Nc3 {[%clk 0:03:00]}  dxe4 {[%clk 0:02:59]} 4. Nxe4 {[%clk 0:03:01]}  Bf5 {[%clk 0:02:59]} 5. Ng3 {[%clk 0:03:01]}  Bg6 {[%clk 0:02:59]} 6. h4 {[%clk 0:03:02]}  h6 {[%clk 0:02:57]} 7. h5 {[%clk 0:03:01]}  Bh7 {[%clk 0:02:56]} 8. Nf3 {[%clk 0:03:02]}  Nd7 {[%clk 0:02:56]} 9. Bd3 {[%clk 0:03:03]}  Bxd3 {[%clk 0:02:55]} 10. Qxd3 {[%clk 0:03:03]}  e6 {[%clk 0:02:54]} 11. O-O {[%clk 0:03:01]}  Ngf6 {[%clk 0:02:51]} 12. c4 {[%clk 0:02:59]}  Be7 {[%clk 0:02:50]} 13. Bf4 {[%clk 0:02:53]}  O-O {[%clk 0:02:50]} 14. a3 {[%clk 0:02:47]}  Nh7 {[%clk 0:02:42]} 15. Rad1 {[%clk 0:02:29]}  Ng5 {[%clk 0:02:40]} 16. Ne5 {[%clk 0:02:25]}  Nxe5 {[%clk 0:02:36]} 17. Bxe5 {[%clk 0:02:24]}  Bf6 {[%clk 0:02:34]} 18. Qe3 {[%clk 0:02:15]}  Nh7 {[%clk 0:02:24]} 19. Ne4 {[%clk 0:02:07]}  Bxe5 {[%clk 0:02:16]} 20. dxe5 {[%clk 0:02:08]}  Qh4 {[%clk 0:02:13]} 21. Qf3 {[%clk 0:01:58]}  Ng5 {[%clk 0:02:11]} 22. Nxg5 {[%clk 0:01:55]}  Qxg5 {[%clk 0:02:11]} 23. Rfe1 {[%clk 0:01:49]}  Rad8 {[%clk 0:02:03]} 24. Qe3 {[%clk 0:01:31]}  Rxd1 {[%clk 0:01:59]} 25. Rxd1 {[%clk 0:01:26]}  Qxh5 {[%clk 0:01:59]} 26. Rd7 {[%clk 0:01:24]}  Rb8 {[%clk 0:01:48]} 27. Qxa7 {[%clk 0:01:22]}  Rf8 {[%clk 0:01:40]} 28. Qxb7 {[%clk 0:01:20]}  Qxe5 {[%clk 0:01:36]} 29. Qxc6 {[%clk 0:01:10]}  Qxb2 {[%clk 0:01:34]} 30. a4 {[%clk 0:01:06]}  Qc1+ {[%clk 0:01:32]} 31. Kh2 {[%clk 0:01:04]}  Qf4+ {[%clk 0:01:32]} 32. Kg1 {[%clk 0:01:03]}  Qc1+ {[%clk 0:01:32]} 33. Kh2 {[%clk 0:01:03]}  Qf4+ {[%clk 0:01:29]} 34. Kg1 {[%clk 0:01:03]}  Rb8 {[%clk 0:01:23]} 35. Rd1 {[%clk 0:00:45]}  Rb2 {[%clk 0:01:20]} 36. Qc5 {[%clk 0:00:37]}  Rc2 {[%clk 0:01:14]} 37. Qd4 {[%clk 0:00:31]}  Rxc4 {[%clk 0:01:08]} 38. Qxf4 {[%clk 0:00:23]}  Rxf4 {[%clk 0:01:06]} 39. Ra1 {[%clk 0:00:24]}  Rd4 {[%clk 0:00:59]} 40. a5 {[%clk 0:00:24]}  Rd7 {[%clk 0:00:59]} 41. a6 {[%clk 0:00:24]}  Ra7 {[%clk 0:00:58]} 42. f3 {[%clk 0:00:25]}  f6 {[%clk 0:00:55]} 43. Kf2 {[%clk 0:00:26]}  Kf7 {[%clk 0:00:55]} 44. Ke3 {[%clk 0:00:27]}  Ke7 {[%clk 0:00:55]} 45. Kd4 {[%clk 0:00:27]}  Kd6 {[%clk 0:00:55]} 46. Ra5 {[%clk 0:00:25]}  g5 {[%clk 0:00:48]} 47. g4 {[%clk 0:00:22]}  Kc6 {[%clk 0:00:41]} 48. Kc4 {[%clk 0:00:22]}  Kb6 {[%clk 0:00:39]} 49. Kb4 {[%clk 0:00:21]}  Kc6 {[%clk 0:00:28]} 50. Kc4 {[%clk 0:00:20]}  Kb6 {[%clk 0:00:27]} 51. Kb4 {[%clk 0:00:21]}  Kc6 {[%clk 0:00:17]} 52. Kc4 {[%clk 0:00:21]} 1/2-1/2


[Site "https://www.chess.com"]